lending/lending_fUSD_20240507
["ID","MTS","AMOUNT","RATE_DAILY","PERIOD"]
[326585968,1715117461120,-900.29,0.00021917,2]
[326585969,1715117461131,-500.0,0.00021917,2]
[326585970,1715117461141,-241.45985368,0.00021917,2]
[326585971,1715117461151,-500.0,0.00021917,2]
[326585972,1715117461161,-500.0,0.00021917,2]
[326585973,1715117461170,-500.0,0.00021917,2]
[326585974,1715117461180,-825.52,0.00021917,2]
[326585975,1715117461190,-500.0,0.00021917,2]
[326585976,1715117461199,-509.05,0.00021917,2]
[326585977,1715117461212,-500.0,0.00021917,2]
[326585978,1715117461222,-500.0,0.00021917,2]
[326585979,1715117461232,-1014.93,0.00021917,2]
[326585980,1715117461242,-754.68,0.00021917,2]
[326585981,1715117461252,-500.0,0.00021917,2]
[326585982,1715117461264,-500.0,0.00021917,2]
[326585983,1715117461274,-500.0,0.00021917,2]
[326585984,1715117461284,-500.0,0.00021917,2]
[326585985,1715117461297,-821.6,0.00021917,2]
[326585986,1715117461308,-500.0,0.00021917,2]
[326585987,1715117461317,-500.0,0.00021917,2]
[326585988,1715117461327,-500.0,0.00021917,2]
[326585989,1715117461337,-502.67,0.00021917,2]
[326585990,1715117461346,-500.0,0.00021917,2]
[326585991,1715117461356,-500.0,0.00021917,2]
[326585992,1715117461365,-519.98,0.00021917,2]
[326585993,1715117461375,-692.65,0.00021917,2]
[326585994,1715117461384,-621.89,0.00021917,2]
[326585995,1715117461394,-500.0,0.00021917,2]
[326585996,1715117461404,-1030.06,0.00021917,2]
[326585997,1715117461414,-500.0,0.00021917,2]
[326585998,1715117461423,-500.0,0.00021917,2]
[326585999,1715117461433,-500.0,0.00021917,2]
[326586000,1715117461443,-4033.12,0.00021917,2]
[326586001,1715117461453,-891.56,0.00021917,2]
[326586002,1715117461463,-500.0,0.00021917,2]
[326586003,1715117461472,-1999.6,0.00021917,2]
[326586004,1715117461482,-500.0,0.00021917,2]
[326586005,1715117461492,-430.91719605,0.00021917,2]
[326586006,1715117461501,-500.0,0.00021917,2]
[326586007,1715117461511,-500.0,0.00021917,2]
[326586008,1715117461520,-1975.2,0.00021917,2]
[326586009,1715117461529,-1136.63,0.00021917,2]
[326586010,1715117461538,-500.0,0.00021917,2]
[326586011,1715117461548,-500.0,0.00021917,2]
[326586012,1715117461558,-828.79,0.00021917,2]
[326586013,1715117461568,-1441.18,0.00021917,2]
[326586014,1715117461578,-942.0,0.00021917,2]
[326586015,1715117461587,-500.0,0.00021917,2]
[326586016,1715117461596,-500.0,0.00021917,2]
[326586017,1715117461606,-500.0,0.00021917,2]
[326586018,1715117461616,-500.0,0.00021917,2]
[326586019,1715117461626,-964.56,0.00021917,2]
[326586020,1715117461635,-500.0,0.00021917,2]
[326586021,1715117461645,-2912.13,0.00021917,2]
[326586022,1715117461655,-500.0,0.00021917,2]
[326586023,1715117461665,-500.0,0.00021917,2]
[326586024,1715117461675,-500.0,0.00021917,2]
[326586025,1715117461685,-500.0,0.00021917,2]
[326586026,1715117461695,-2784.18,0.00021917,2]
[326586027,1715117461706,-2616.02,0.00021917,2]
[326586028,1715117461716,-500.0,0.00021917,2]
[326586029,1715117461726,-555.15,0.00021917,2]
[326586030,1715117461736,-500.0,0.00021917,2]
[326586031,1715117461746,-464.15312837,0.00021917,2]
[326586032,1715117461756,-733.36,0.00021917,2]
[326586033,1715117461767,-611.2,0.00021917,2]
[326586034,1715117461776,-500.0,0.00021917,2]
[326586035,1715117461786,-500.0,0.00021917,2]
[326586036,1715117461796,-500.0,0.00021917,2]
[326586037,1715117461806,-604.76,0.00021917,2]
[326586038,1715117461816,-2000.0,0.00021918,2]
[326586039,1715117461826,-250.0,0.00021918,2]
[326586040,1715117461836,-250.0,0.00021918,2]
[326586041,1715117461847,-276.5,0.00021934,5]
[326586042,1715117461856,-709.54,0.00022,2]
[326586043,1715117461866,-850.0,0.00022,3]
[326586044,1715117461876,-150.0,0.00022,3]
[326586045,1715117461886,-212.14847667,0.00022047,2]
[326586046,1715117461895,-159.17705713,0.00022072,2]
[326586047,1715117461905,-500.0,0.00022191,2]
[326586048,1715117461915,-500.0,0.00022191,2]
[326586049,1715117461924,-150.0,0.00022191,2]
[326586050,1715117461934,-500.0,0.00022191,2]
[326586051,1715117461944,-500.0,0.00022191,2]
[326586052,1715117461953,-500.0,0.00022191,2]
[326586053,1715117461963,-500.0,0.00022191,2]
[326586054,1715117461972,-500.0,0.00022191,2]
[326586055,1715117461983,-500.0,0.00022191,2]
[326586056,1715117461993,-657.46,0.00022191,2]
[326586057,1715117462002,-500.0,0.00022191,2]
[326586058,1715117462012,-500.0,0.00022191,2]
[326586059,1715117462022,-500.0,0.00022191,2]
[326586060,1715117462032,-500.0,0.00022191,2]
[326586061,1715117462042,-500.0,0.00022191,2]
[326586062,1715117462052,-500.0,0.00022191,2]
[326586063,1715117462063,-500.0,0.00022191,2]
[326586064,1715117462073,-999.28,0.00022191,2]
[326586065,1715117462083,-500.0,0.00022191,2]
[326586066,1715117462094,-532.96,0.00022191,2]
[326586067,1715117462104,-500.0,0.00022191,2]
[326586068,1715117462114,-5497.96,0.00022191,2]
[326586069,1715117462124,-500.0,0.00022191,2]
[326586070,1715117462134,-500.0,0.00022191,2]
[326586071,1715117462143,-500.0,0.00022191,2]
[326586072,1715117462152,-500.0,0.00022191,2]
[326586073,1715117462162,-500.0,0.00022191,2]
[326586074,1715117462172,-1739.22,0.00022191,2]
[326586075,1715117462182,-500.0,0.00022191,2]
[326586076,1715117462192,-500.0,0.00022191,2]
[326586077,1715117462202,-500.0,0.00022191,2]
[326586078,1715117462216,-1222.63,0.00022191,2]
[326586079,1715117462226,-500.0,0.00022191,2]
[326586080,1715117462236,-500.0,0.00022191,2]
[326586081,1715117462247,-594.66,0.00022191,2]
[326586082,1715117462256,-500.0,0.00022191,2]
[326586083,1715117462266,-500.0,0.00022191,2]
[326586084,1715117462275,-748.5,0.00022191,2]
[326586085,1715117462287,-898.56,0.00022191,2]
[326586086,1715117462298,-661.0,0.00022191,2]
[326586087,1715117462307,-500.0,0.00022191,2]
[326586088,1715117462317,-900.29,0.00022191,2]
[326586089,1715117462327,-388.57259571,0.00022191,2]
[326586090,1715117462337,-500.0,0.00022191,2]
[326586091,1715117462347,-500.0,0.00022191,2]
[326586092,1715117462357,-500.0,0.00022191,2]
[326586093,1715117462367,-825.52,0.00022191,2]
[326586094,1715117462377,-500.0,0.00022191,2]
[326586095,1715117462386,-509.05,0.00022191,2]
[326586096,1715117462396,-500.0,0.00022191,2]
[326586097,1715117462405,-561.13512784,0.00022191,2]
[326586098,1715117462415,-1014.93,0.00022191,2]
[326586099,1715117462424,-754.68,0.00022191,2]
[326586100,1715117462434,-500.0,0.00022191,2]
[326586101,1715117462444,-500.0,0.00022191,2]
[326586102,1715117462454,-500.0,0.00022191,2]
[326586103,1715117462464,-500.0,0.00022191,2]
[326586104,1715117462473,-821.6,0.00022191,2]
[326586105,1715117462484,-500.0,0.00022191,2]
[326586106,1715117462493,-500.0,0.00022191,2]
[326586107,1715117462503,-500.0,0.00022191,2]
[326586108,1715117462512,-502.67,0.00022191,2]
[326586109,1715117462522,-500.0,0.00022191,2]
[326586110,1715117462532,-500.0,0.00022191,2]
[326586111,1715117462542,-519.98,0.00022191,2]
[326586112,1715117462551,-692.65,0.00022191,2]
[326586113,1715117462561,-621.89,0.00022191,2]
[326586114,1715117462571,-598.88772725,0.00022191,2]
[326586115,1715117462581,-1030.06,0.00022191,2]
[326586116,1715117462591,-500.0,0.00022191,2]
[326586117,1715117462600,-500.0,0.00022191,2]
[326586118,1715117462609,-500.0,0.00022191,2]
[326586119,1715117462619,-4033.12,0.00022191,2]
[326586120,1715117462629,-891.56,0.00022191,2]
[326586121,1715117462638,-500.0,0.00022191,2]
[326586122,1715117462648,-1999.6,0.00022191,2]
[326586123,1715117462658,-309.71901467,0.00022191,2]
[326586124,1715117462668,-500.0,0.00022191,2]
[326586125,1715117462677,-500.0,0.00022191,2]
[326586126,1715117462687,-1975.2,0.00022191,2]
[326586127,1715117462697,-1136.63,0.00022191,2]
[326586128,1715117462706,-500.0,0.00022191,2]
[326586129,1715117462716,-500.0,0.00022191,2]
[326586130,1715117462726,-828.79,0.00022191,2]
[326586131,1715117462737,-1441.18,0.00022191,2]
[326586132,1715117462747,-942.0,0.00022191,2]
[326586133,1715117462758,-500.0,0.00022191,2]
[326586134,1715117462769,-360.08871968,0.00022191,2]
[326586135,1715117462779,-500.0,0.00022191,2]
[326586136,1715117462789,-500.0,0.00022191,2]
[326586137,1715117462799,-964.56,0.00022191,2]
[326586138,1715117462810,-500.0,0.00022191,2]
[326586139,1715117462820,-596.44232678,0.00022191,2]
[326586140,1715117462830,-2912.13,0.00022191,2]
[326586141,1715117462840,-500.0,0.00022191,2]
[326586142,1715117462850,-500.0,0.00022191,2]
[326586143,1715117462860,-500.0,0.00022191,2]
[326586144,1715117462870,-2784.18,0.00022191,2]
[326586145,1715117462881,-2616.02,0.00022191,2]
[326586146,1715117462891,-500.0,0.00022191,2]
[326586147,1715117462902,-555.15,0.00022191,2]
[326586148,1715117462912,-500.0,0.00022191,2]
[326586149,1715117462922,-733.36,0.00022191,2]
[326586150,1715117462932,-611.2,0.00022191,2]
[326586151,1715117462942,-500.0,0.00022191,2]
[326586152,1715117462952,-500.0,0.00022191,2]
[326586153,1715117462961,-216.34349562,0.00022191,2]
[326586154,1715117462971,-604.76,0.00022191,2]
[326586155,1715117462981,-150.0,0.00022192,2]
[326586156,1715117462990,-150.0,0.00022192,2]
[326586157,1715117463000,-150.0,0.00022192,2]
[326586158,1715117463010,-150.0,0.00022192,2]
[326586159,1715117463020,-150.0,0.00022192,2]
[326586160,1715117463029,-150.0,0.00022192,2]
[326586161,1715117463039,-150.0,0.00022192,2]
[326586162,1715117463048,-150.0,0.00022192,2]
[326586163,1715117463095,-150.0,0.00022192,2]
[326586164,1715117463105,-150.0,0.00022192,2]
[326586165,1715117463114,-288.0,0.00022203,2]
[326586166,1715117463124,-5900.0,0.00022203,2]
[326586167,1715117463134,-5738.0,0.00022203,2]
[326586168,1715117463144,-298.03044626,0.00022355,2]
[326586169,1715117463154,-153.87301583,0.00022356,10]
[326586170,1715117463163,-153.87301584,0.00022356,10]
[326586171,1715117463173,-198.21,0.00022415,2]
[326586172,1715117463182,-157.15533481,0.00022439,2]
[326586173,1715117463192,-276.5,0.00022441,5]
[326586174,1715117463202,-82656.14611837,0.00022461,2]
[326586175,1715117463215,-500.0,0.00022465,2]
[326586176,1715117463224,-500.0,0.00022465,2]
[326586177,1715117463234,-150.0,0.00022465,2]
[326586178,1715117463243,-558.76559454,0.00022465,2]
[326586179,1715117463254,-500.0,0.00022465,2]
[326586180,1715117463263,-500.0,0.00022465,2]
[326586181,1715117463272,-500.0,0.00022465,2]
[326586182,1715117463281,-500.0,0.00022465,2]
[326586183,1715117463293,-421.85393157,0.00022465,2]
[326586184,1715117463303,-657.46,0.00022465,2]
[326586185,1715117463314,-500.0,0.00022465,2]
[326586186,1715117463323,-500.0,0.00022465,2]
[326586187,1715117463333,-500.0,0.00022465,2]
[326586188,1715117463343,-500.0,0.00022465,2]
[326586189,1715117463354,-500.0,0.00022465,2]
[326586190,1715117463363,-240.46136221,0.00022465,2]
[326586191,1715117463374,-573.44055285,0.00022465,2]
[326586192,1715117463385,-999.28,0.00022465,2]
[326586193,1715117463396,-500.0,0.00022465,2]
[326586194,1715117463406,-532.96,0.00022465,2]
[326586195,1715117463418,-500.0,0.00022465,2]
[326586196,1715117463428,-5497.96,0.00022465,2]
[326586197,1715117463437,-500.0,0.00022465,2]
[326586198,1715117463447,-500.0,0.00022465,2]
[326586199,1715117463457,-500.0,0.00022465,2]
[326586200,1715117463466,-500.0,0.00022465,2]
[326586201,1715117463476,-500.0,0.00022465,2]
[326586202,1715117463485,-1739.22,0.00022465,2]
[326586203,1715117463494,-500.0,0.00022465,2]
[326586204,1715117463504,-500.0,0.00022465,2]
[326586205,1715117463514,-500.0,0.00022465,2]
[326586206,1715117463523,-1222.63,0.00022465,2]
[326586207,1715117463533,-500.0,0.00022465,2]
[326586208,1715117463542,-500.0,0.00022465,2]
[326586209,1715117463552,-594.66,0.00022465,2]
[326586210,1715117463562,-500.0,0.00022465,2]
[326586211,1715117463571,-381.48018078,0.00022465,2]
[326586212,1715117463580,-748.5,0.00022465,2]
[326586213,1715117463589,-898.56,0.00022465,2]
[326586214,1715117463599,-661.0,0.00022465,2]
[326586215,1715117463610,-500.0,0.00022465,2]
[326586216,1715117463619,-900.29,0.00022465,2]
[326586217,1715117463628,-500.0,0.00022465,2]
[326586218,1715117463637,-500.0,0.00022465,2]
[326586219,1715117463647,-500.0,0.00022465,2]
[326586220,1715117463657,-825.52,0.00022465,2]
[326586221,1715117463666,-500.0,0.00022465,2]
[326586222,1715117463676,-509.05,0.00022465,2]
[326586223,1715117463685,-500.0,0.00022465,2]
[326586224,1715117463695,-1014.93,0.00022465,2]
[326586225,1715117463705,-754.68,0.00022465,2]
[326586226,1715117463714,-500.0,0.00022465,2]
[326586227,1715117463724,-500.0,0.00022465,2]
[326586228,1715117463734,-500.0,0.00022465,2]
[326586229,1715117463743,-500.0,0.00022465,2]
[326586230,1715117463753,-821.6,0.00022465,2]
[326586231,1715117463764,-500.0,0.00022465,2]
[326586232,1715117463774,-622.63121851,0.00022465,2]
[326586233,1715117463784,-500.0,0.00022465,2]
[326586234,1715117463794,-502.67,0.00022465,2]
[326586235,1715117463804,-500.0,0.00022465,2]
[326586236,1715117463814,-500.0,0.00022465,2]
[326586237,1715117463823,-519.98,0.00022465,2]
[326586238,1715117463832,-692.65,0.00022465,2]
[326586239,1715117463842,-621.89,0.00022465,2]
[326586240,1715117463852,-1030.06,0.00022465,2]
[326586241,1715117463862,-500.0,0.00022465,2]
[326586242,1715117463872,-500.0,0.00022465,2]
[326586243,1715117463882,-500.0,0.00022465,2]
[326586244,1715117463892,-4033.12,0.00022465,2]
[326586245,1715117463902,-891.56,0.00022465,2]
[326586246,1715117463911,-500.0,0.00022465,2]
[326586247,1715117463921,-1999.6,0.00022465,2]
[326586248,1715117463931,-500.0,0.00022465,2]
[326586249,1715117463941,-500.0,0.00022465,2]
[326586250,1715117463951,-1975.2,0.00022465,2]
[326586251,1715117463960,-1136.63,0.00022465,2]
[326586252,1715117463970,-500.0,0.00022465,2]
[326586253,1715117463981,-500.0,0.00022465,2]
[326586254,1715117463991,-828.79,0.00022465,2]
[326586255,1715117464002,-1441.18,0.00022465,2]
[326586256,1715117464011,-942.0,0.00022465,2]
[326586257,1715117464020,-500.0,0.00022465,2]
[326586258,1715117464030,-251.79604757,0.00022465,2]
[326586259,1715117464039,-500.0,0.00022465,2]
[326586260,1715117464049,-964.56,0.00022465,2]
[326586261,1715117464061,-500.0,0.00022465,2]
[326586262,1715117464070,-2912.13,0.00022465,2]
[326586263,1715117464081,-369.17202532,0.00022465,2]
[326586264,1715117464091,-500.0,0.00022465,2]
[326586265,1715117464100,-500.0,0.00022465,2]
[326586266,1715117464110,-2784.18,0.00022465,2]
[326586267,1715117464120,-2616.02,0.00022465,2]
[326586268,1715117464130,-500.0,0.00022465,2]
[326586269,1715117464140,-555.15,0.00022465,2]
[326586270,1715117464150,-500.0,0.00022465,2]
[326586271,1715117464160,-733.36,0.00022465,2]
[326586272,1715117464170,-611.2,0.00022465,2]
[326586273,1715117464179,-500.0,0.00022465,2]
[326586274,1715117464189,-500.0,0.00022465,2]
[326586275,1715117464198,-157.05852506,0.00022493,2]
[326586276,1715117464213,-150.0,0.000225,3]
[326586277,1715117464223,-150.55753947,0.00022539,2]
[326586278,1715117464233,-1000.0,0.000226,2]
[326586279,1715117464243,-437.98531656,0.00022639,2]
[326586280,1715117464256,-1982.93275928,0.00022639,2]
[326586281,1715117464266,-592.19695646,0.00022639,2]
[326586282,1715117464276,-1560.96410363,0.0002264,2]
[326586283,1715117464287,-175.0,0.0002266,11]
[326586284,1715117464297,-153.87301583,0.00022685,10]
[326586285,1715117464306,-153.87301584,0.00022685,10]
[326586286,1715117464317,-245.39197866,0.000227,2]
[326586287,1715117464326,-500.0,0.00022739,2]
[326586288,1715117464335,-500.0,0.00022739,2]
[326586289,1715117464343,-150.0,0.00022739,2]
[326586290,1715117464352,-500.0,0.00022739,2]
[326586291,1715117464362,-500.0,0.00022739,2]
[326586292,1715117464371,-378.5225204,0.00022739,2]
[326586293,1715117464382,-485.74107505,0.00022739,2]
[326586294,1715117464391,-657.46,0.00022739,2]
[326586295,1715117464400,-500.0,0.00022739,2]
[326586296,1715117464409,-500.0,0.00022739,2]
[326586297,1715117464419,-457.22489547,0.00022739,2]
[326586298,1715117464428,-500.0,0.00022739,2]
[326586299,1715117464437,-500.0,0.00022739,2]
[326586300,1715117464447,-999.28,0.00022739,2]
[326586301,1715117464456,-500.0,0.00022739,2]
[326586302,1715117464466,-532.96,0.00022739,2]
[326586303,1715117464476,-500.0,0.00022739,2]
[326586304,1715117464485,-5497.96,0.00022739,2]
[326586305,1715117464494,-500.0,0.00022739,2]
[326586306,1715117464503,-500.0,0.00022739,2]
[326586307,1715117464512,-500.0,0.00022739,2]
[326586308,1715117464521,-203.0126871,0.00022739,2]
[326586309,1715117464531,-500.0,0.00022739,2]
[326586310,1715117464540,-1739.22,0.00022739,2]
[326586311,1715117464550,-500.0,0.00022739,2]
[326586312,1715117464559,-500.0,0.00022739,2]
[326586313,1715117464570,-500.0,0.00022739,2]
[326586314,1715117464580,-1222.63,0.00022739,2]
[326586315,1715117464590,-500.0,0.00022739,2]
[326586316,1715117464599,-495.61186733,0.00022739,2]
[326586317,1715117464609,-594.66,0.00022739,2]
[326586318,1715117464619,-500.0,0.00022739,2]
[326586319,1715117464628,-748.5,0.00022739,2]
[326586320,1715117464639,-898.56,0.00022739,2]
[326586321,1715117464649,-661.0,0.00022739,2]
[326586322,1715117464659,-158.66541407,0.00022739,2]
[326586323,1715117464668,-900.29,0.00022739,2]
[326586324,1715117464678,-500.0,0.00022739,2]
[326586325,1715117464688,-500.0,0.00022739,2]
[326586326,1715117464699,-539.36538663,0.00022739,2]
[326586327,1715117464709,-825.52,0.00022739,2]
[326586328,1715117464719,-430.03776933,0.00022739,2]
[326586329,1715117464728,-509.05,0.00022739,2]
[326586330,1715117464738,-500.0,0.00022739,2]
[326586331,1715117464748,-1014.93,0.00022739,2]
[326586332,1715117464758,-754.68,0.00022739,2]
[326586333,1715117464770,-500.0,0.00022739,2]
[326586334,1715117464780,-500.0,0.00022739,2]
[326586335,1715117464789,-500.0,0.00022739,2]
[326586336,1715117464799,-500.0,0.00022739,2]
[326586337,1715117464808,-821.6,0.00022739,2]
[326586338,1715117464820,-500.0,0.00022739,2]
[326586339,1715117464829,-500.0,0.00022739,2]
[326586340,1715117464840,-502.67,0.00022739,2]
[326586341,1715117464849,-500.0,0.00022739,2]
[326586342,1715117464859,-500.0,0.00022739,2]
[326586343,1715117464869,-519.98,0.00022739,2]
[326586344,1715117464878,-692.65,0.00022739,2]
[326586345,1715117464888,-621.89,0.00022739,2]
[326586346,1715117464897,-1030.06,0.00022739,2]
[326586347,1715117464907,-500.0,0.00022739,2]
[326586348,1715117464918,-500.0,0.00022739,2]
[326586349,1715117464930,-500.0,0.00022739,2]
[326586350,1715117464940,-4033.12,0.00022739,2]
[326586351,1715117464950,-891.56,0.00022739,2]
[326586352,1715117464960,-509.98748619,0.00022739,2]
[326586353,1715117464970,-1999.6,0.00022739,2]
[326586354,1715117464980,-500.0,0.00022739,2]
[326586355,1715117464991,-500.0,0.00022739,2]
[326586356,1715117465002,-1975.2,0.00022739,2]
[326586357,1715117465012,-1136.63,0.00022739,2]
[326586358,1715117465023,-500.0,0.00022739,2]
[326586359,1715117465033,-500.0,0.00022739,2]
[326586360,1715117465043,-828.79,0.00022739,2]
[326586361,1715117465053,-1441.18,0.00022739,2]
[326586362,1715117465062,-942.0,0.00022739,2]
[326586363,1715117465073,-500.0,0.00022739,2]
[326586364,1715117465083,-500.0,0.00022739,2]
[326586365,1715117465092,-964.56,0.00022739,2]
[326586366,1715117465101,-500.0,0.00022739,2]
[326586367,1715117465111,-2912.13,0.00022739,2]
[326586368,1715117465121,-500.0,0.00022739,2]
[326586369,1715117465131,-500.0,0.00022739,2]
[326586370,1715117465142,-2784.18,0.00022739,2]
[326586371,1715117465152,-2616.02,0.00022739,2]
[326586372,1715117465164,-619.98096843,0.00022739,2]
[326586373,1715117465174,-555.15,0.00022739,2]
[326586374,1715117465185,-500.0,0.00022739,2]
[326586375,1715117465196,-733.36,0.00022739,2]
[326586376,1715117465208,-611.2,0.00022739,2]
[326586377,1715117465220,-500.0,0.00022739,2]
[326586378,1715117465231,-500.0,0.00022739,2]
[326586379,1715117465241,-2875.87761426,0.00022767,2]
[326586380,1715117465253,-21355.71476822,0.00022768,2]
[326586381,1715117465264,-1310.0,0.000228,2]
[326586382,1715117465274,-200.0,0.00022807,2]
[326586383,1715117465284,-409.447311,0.00022807,2]
[326586384,1715117465296,-500.0,0.00022807,2]
[326586385,1715117465306,-200.0,0.00022807,2]
[326586386,1715117465318,-1179.69427881,0.00022851,2]
[326586387,1715117465328,-187.20996954,0.00022851,2]
[326586388,1715117465337,-992.86,0.00022902,2]
[326586389,1715117465347,-150.0,0.00022931,4]
[326586390,1715117465357,-150.0,0.00022931,4]
[326586391,1715117465367,-150.0,0.00022931,4]
[326586392,1715117465376,-150.0,0.00022931,4]
[326586393,1715117465387,-276.5,0.00022947,5]
[326586394,1715117465396,-200.37626155,0.0002298,7]
[326586395,1715117465407,-207.66695698,0.00022996,2]
[326586396,1715117465417,-5858.31717383,0.00022996,2]
[326586397,1715117465426,-774.4499627,0.00022997,2]
[326586398,1715117465436,-529.20350525,0.00022997,2]
[326586399,1715117465446,-1378.6736369,0.00022997,2]
[326586400,1715117465455,-1774.1169,0.00022997,2]
[326586401,1715117465466,-884.14433206,0.00022997,2]
[326586402,1715117465477,-172.4719654,0.00022997,2]
[326586403,1715117465488,-1083.2861604,0.00022997,2]
[326586404,1715117465498,-207.05329635,0.00022998,2]
[326586405,1715117465507,-3004.06447303,0.00022998,2]
[326586406,1715117465518,-4270.37766422,0.00022998,2]
[326586407,1715117465527,-155.31480852,0.00022998,2]
[326586408,1715117465538,-2180.17335597,0.00022999,2]
[326586409,1715117465549,-378.89600529,0.00022999,2]
[326586410,1715117465559,-1635.11088042,0.00022999,2]
[326586411,1715117465570,-500.0,0.00022999,2]
[326586412,1715117465579,-500.0,0.00022999,2]
[326586413,1715117465590,-500.0,0.00022999,2]
[326586414,1715117465600,-500.0,0.00022999,2]
[326586415,1715117465610,-500.0,0.00022999,2]
[326586416,1715117465620,-500.0,0.00022999,2]
[326586417,1715117465629,-637.0,0.00022999,2]
[326586418,1715117465639,-431714.5239638,0.00023,4]
[326586419,1715117465660,-1589.43374902,0.00023,4]
[326586420,1715117465672,-8727.11890092,0.00023,4]
[326586421,1715117465685,-48155.68703514,0.00023,4]
[326586422,1715117465696,-32883.87290822,0.00023,4]
[326586423,1715117466090,-428.37591972,0.00019177,2]
[326586424,1715117466100,-500.0,0.00019178,2]
[326586425,1715117466110,-500.0,0.00020273,2]
[326586426,1715117466119,-500.0,0.00020547,2]
[326586427,1715117466129,-500.0,0.00020821,2]
[326586428,1715117466139,-1271.1,0.00021095,2]
[326586429,1715117466148,-500.0,0.00021095,2]
[326586430,1715117466158,-1271.1,0.00021369,2]
[326586431,1715117466168,-500.0,0.00021369,2]
[326586432,1715117466178,-1271.1,0.00021643,2]
[326586433,1715117466187,-500.0,0.00021643,2]
[326586434,1715117466197,-1271.1,0.00021917,2]
[326586435,1715117466212,-500.0,0.00021917,2]
[326586436,1715117466222,-1271.1,0.00022191,2]
[326586437,1715117466232,-500.0,0.00022191,2]
[326586438,1715117466241,-604.76,0.00022465,2]
[326586439,1715117466253,-1271.1,0.00022465,2]
[326586440,1715117466263,-500.0,0.00022465,2]
[326586441,1715117466272,-604.76,0.00022739,2]
[326586442,1715117466283,-1271.1,0.00022739,2]
[326586443,1715117466293,-500.0,0.00022739,2]
[326586444,1715117466304,-15548.5786229,0.00023,4]
[326586445,1715117466316,-2980.07062746,0.00023,4]
[326586446,1715117466328,-872.42505771,0.00023,4]
[326586447,1715117466339,-1635.12992052,0.00023,4]
[326586448,1715117466351,-784.50318454,0.00023,4]
[326586449,1715117466363,-6790.78450001,0.00023,4]
[326586450,1715117466374,-500.0,0.00023,4]
[326586451,1715117466386,-18941.47278,0.00023,4]
[326586452,1715117466397,-3555.70374447,0.00023,4]
[326586453,1715117466409,-417.95220767,0.00023,4]
[326586454,1715117466421,-669.896727,0.00023,4]
[326586455,1715117466434,-1711.79651459,0.00023,4]
[326586456,1715117466445,-2007.98,0.00023,4]
[326586457,1715117466458,-2008.00587715,0.00023,4]
[326586458,1715117466470,-125875.57247799,0.00023,4]
[326586459,1715117466482,-3248.3558,0.00023,4]
[326586460,1715117466494,-1825.79,0.00023,4]
[326586461,1715117466506,-7637.15837588,0.00023,4]
[326586462,1715117466517,-573.21579132,0.00023,4]
[326586463,1715117466528,-7496.55257059,0.00023,4]
[326586464,1715117466540,-16869.73934652,0.00023,4]
[326586465,1715117466551,-5812.9,0.00023,4]
[326586467,1715117675218,24527.22270808,6.94e-05,2]
[326586468,1715117741405,560.23756032,6.94e-05,2]